[Event "*** Titled Tuesday Blitz"]
[Site "Chess.com"]
[Date "2020.04.21"]
[Round "6"]
[White "AniJak"]
[Black "harkerchess"]
[Result "1-0"]
[WhiteElo "2255"]
[BlackElo "1955"]
[TimeControl "180+1"]
[EndTime "11:10:54 PDT"]
[Termination "AniJak won by checkmate"]

1. e4 {[%clk 0:03:00.9]} 1... e5 {[%clk 0:02:59.7]} 2. Nc3 {[%clk 0:02:59.8]}
2... Nf6 {[%clk 0:02:59.1]} 3. g3 {[%clk 0:02:59.8]} 3... Bc5 {[%clk 0:02:57.8]}
4. Bg2 {[%clk 0:02:59.1]} 4... O-O {[%clk 0:02:57.9]} 5. d3 {[%clk 0:02:58.5]}
5... c6 {[%clk 0:02:57.3]} 6. Nge2 {[%clk 0:02:51.7]} 6... d5 {[%clk 0:02:56.8]}
7. exd5 {[%clk 0:02:51.3]} 7... cxd5 {[%clk 0:02:57.7]} 8. O-O {[%clk
0:02:46.4]} 8... h6 {[%clk 0:02:56.6]} 9. d4 {[%clk 0:02:46]} 9... exd4 {[%clk
0:02:52.1]} 10. Nxd4 {[%clk 0:02:46.9]} 10... Nc6 {[%clk 0:02:51.9]} 11. Nb3
{[%clk 0:02:44.8]} 11... Bb6 {[%clk 0:02:48.6]} 12. Nxd5 {[%clk 0:02:44]} 12...
Nxd5 {[%clk 0:02:46.6]} 13. Qxd5 {[%clk 0:02:43.8]} 13... Nb4 {[%clk 0:02:44.6]}
14. Qc4 {[%clk 0:02:38]} 14... a5 {[%clk 0:02:40.8]} 15. c3 {[%clk 0:02:20.2]}
15... Nc2 {[%clk 0:02:35.2]} 16. Rb1 {[%clk 0:02:16.1]} 16... Bf5 {[%clk
0:02:35.3]} 17. Bf4 {[%clk 0:01:52.6]} 17... Bd3 {[%clk 0:02:29.5]} 18. Qa4
{[%clk 0:01:47.3]} 18... Bxf1 {[%clk 0:02:27.2]} 19. Rxf1 {[%clk 0:01:48.2]}
19... Qd3 {[%clk 0:02:25.6]} 20. Nc1 {[%clk 0:01:43.4]} 20... Qa6 {[%clk
0:02:07.6]} 21. Qxc2 {[%clk 0:01:42.1]} 21... Rad8 {[%clk 0:02:05.2]} 22. Qe4
{[%clk 0:01:30.9]} 22... Qb5 {[%clk 0:01:50.5]} 23. b3 {[%clk 0:01:28.4]} 23...
Rc8 {[%clk 0:01:46.8]} 24. c4 {[%clk 0:01:28.1]} 24... Qc5 {[%clk 0:01:43.8]}
25. Qxb7 {[%clk 0:01:26.8]} 25... Rfe8 {[%clk 0:01:37.9]} 26. Nd3 {[%clk
0:01:24.4]} 26... Qd4 {[%clk 0:01:32.8]} 27. Ne5 {[%clk 0:01:22.7]} 27... Rc7
{[%clk 0:01:29.5]} 28. Qa6 {[%clk 0:01:19.5]} 28... Rxe5 {[%clk 0:01:14.4]} 29.
Bxe5 {[%clk 0:01:18.5]} 29... Qxe5 {[%clk 0:01:15.3]} 30. Qxb6 {[%clk
0:01:18.4]} 30... Rd7 {[%clk 0:01:13.8]} 31. c5 {[%clk 0:01:17.6]} 31... Kf8
{[%clk 0:01:11.9]} 32. c6 {[%clk 0:01:17.5]} 32... Re7 {[%clk 0:01:10.2]} 33. c7
{[%clk 0:01:13.6]} 33... Rxc7 {[%clk 0:01:08.3]} 34. a3 {[%clk 0:01:10.1]} 34...
Re7 {[%clk 0:01:06.2]} 35. b4 {[%clk 0:01:09.7]} 35... axb4 {[%clk 0:01:04.9]}
36. axb4 {[%clk 0:01:09.9]} 36... g6 {[%clk 0:01:04.3]} 37. b5 {[%clk
0:01:09.8]} 37... Kg7 {[%clk 0:01:04.3]} 38. Qa6 {[%clk 0:01:08.3]} 38... Re6
{[%clk 0:01:02.3]} 39. Qa4 {[%clk 0:01:07]} 39... Rb6 {[%clk 0:01:00]} 40. Rb1
{[%clk 0:01:05.3]} 40... Qf5 {[%clk 0:00:58.3]} 41. Bc6 {[%clk 0:01:03.4]} 41...
Qxb1+ {[%clk 0:00:57.1]} 42. Kg2 {[%clk 0:01:01.9]} 42... Kh7 {[%clk 0:00:53.4]}
43. Qc4 {[%clk 0:01:00.2]} 43... Qf5 {[%clk 0:00:51]} 44. h3 {[%clk 0:00:53.3]}
44... Rb8 {[%clk 0:00:47.7]} 45. Qd4 {[%clk 0:00:48.8]} 45... Qe6 {[%clk
0:00:44.2]} 46. Bd5 {[%clk 0:00:47.3]} 46... Qd6 {[%clk 0:00:43.9]} 47. Qc4
{[%clk 0:00:46.7]} 47... f5 {[%clk 0:00:39.1]} 48. Bc6 {[%clk 0:00:46]} 48...
Qc7 {[%clk 0:00:36]} 49. Qc5 {[%clk 0:00:44.2]} 49... Rb6 {[%clk 0:00:30.1]} 50.
Qd5 {[%clk 0:00:43.3]} 50... Kg7 {[%clk 0:00:26.6]} 51. Qd4+ {[%clk 0:00:42.6]}
51... Kf7 {[%clk 0:00:26.2]} 52. Bd5+ {[%clk 0:00:42]} 52... Kf8 {[%clk
0:00:20.4]} 53. Qb4+ {[%clk 0:00:40.4]} 53... Qd6 {[%clk 0:00:20.5]} 54. Qc4
{[%clk 0:00:39]} 54... Ke7 {[%clk 0:00:19.3]} 55. Bc6 {[%clk 0:00:38.2]} 55...
Kd8 {[%clk 0:00:19]} 56. Qg8+ {[%clk 0:00:37.9]} 56... Kc7 {[%clk 0:00:19.2]}
57. Qg7+ {[%clk 0:00:37.6]} 57... Kb8 {[%clk 0:00:18.3]} 58. Qxh6 {[%clk
0:00:36.9]} 58... Rxc6 {[%clk 0:00:17.9]} 59. bxc6 {[%clk 0:00:36.5]} 59...
Qxc6+ {[%clk 0:00:18.8]} 60. Kh2 {[%clk 0:00:36.2]} 60... Kc7 {[%clk 0:00:18.5]}
61. Qf4+ {[%clk 0:00:35.2]} 61... Kd7 {[%clk 0:00:18.4]} 62. g4 {[%clk
0:00:35.3]} 62... fxg4 {[%clk 0:00:17.8]} 63. hxg4 {[%clk 0:00:36.2]} 63... Ke7
{[%clk 0:00:17.8]} 64. Kg3 {[%clk 0:00:35.5]} 64... Qc3+ {[%clk 0:00:15.9]} 65.
f3 {[%clk 0:00:35.2]} 65... Qe1+ {[%clk 0:00:15.5]} 66. Kh3 {[%clk 0:00:33.3]}
66... Qh1+ {[%clk 0:00:15.3]} 67. Kg3 {[%clk 0:00:31.9]} 67... Qe1+ {[%clk
0:00:13.5]} 68. Kg2 {[%clk 0:00:31.8]} 68... Qe2+ {[%clk 0:00:13.7]} 69. Kg1
{[%clk 0:00:31.5]} 69... Qe1+ {[%clk 0:00:13.8]} 70. Kh2 {[%clk 0:00:29.6]}
70... Qf2+ {[%clk 0:00:13.8]} 71. Kh3 {[%clk 0:00:29.8]} 71... Qf1+ {[%clk
0:00:13.9]} 72. Kh4 {[%clk 0:00:30]} 72... Qb5 {[%clk 0:00:11.4]} 73. Qg5+
{[%clk 0:00:29.3]} 73... Qxg5+ {[%clk 0:00:11.2]} 74. Kxg5 {[%clk 0:00:30]}
74... Kf7 {[%clk 0:00:12.1]} 75. f4 {[%clk 0:00:29.6]} 75... Kg7 {[%clk
0:00:12.5]} 76. Kh4 {[%clk 0:00:28.1]} 76... Kf7 {[%clk 0:00:10.8]} 77. Kg3
{[%clk 0:00:28.6]} 77... Kg7 {[%clk 0:00:11]} 78. Kf3 {[%clk 0:00:28.9]} 78...
Kf6 {[%clk 0:00:11.1]} 79. Ke4 {[%clk 0:00:29.8]} 79... Ke6 {[%clk 0:00:10.9]}
80. g5 {[%clk 0:00:29]} 80... Kf7 {[%clk 0:00:09.9]} 81. Kd5 {[%clk 0:00:28]}
81... Kg8 {[%clk 0:00:09.9]} 82. Ke6 {[%clk 0:00:27.9]} 82... Kg7 {[%clk
0:00:08.5]} 83. Ke7 {[%clk 0:00:27.8]} 83... Kh7 {[%clk 0:00:08.8]} 84. Kf7
{[%clk 0:00:27.8]} 84... Kh8 {[%clk 0:00:09.3]} 85. Kxg6 {[%clk 0:00:27.9]}
85... Kg8 {[%clk 0:00:08.6]} 86. f5 {[%clk 0:00:27.8]} 86... Kf8 {[%clk
0:00:08.7]} 87. Kh7 {[%clk 0:00:26]} 87... Kf7 {[%clk 0:00:08.8]} 88. g6+ {[%clk
0:00:26.9]} 88... Kf6 {[%clk 0:00:09.6]} 89. g7 {[%clk 0:00:27.3]} 89... Kxf5
{[%clk 0:00:10.5]} 90. g8=Q {[%clk 0:00:27.6]} 90... Ke4 {[%clk 0:00:11.4]} 91.
Qe6+ {[%clk 0:00:27.3]} 91... Kd3 {[%clk 0:00:12.3]} 92. Qd5+ {[%clk 0:00:26.9]}
92... Kc2 {[%clk 0:00:13.2]} 93. Qc4+ {[%clk 0:00:26.9]} 93... Kb1 {[%clk
0:00:14.1]} 94. Qd3+ {[%clk 0:00:26.6]} 94... Ka1 {[%clk 0:00:13.7]} 95. Qd2
{[%clk 0:00:25.9]} 95... Kb1 {[%clk 0:00:13.6]} 96. Kg6 {[%clk 0:00:26.7]} 96...
Ka1 {[%clk 0:00:13.9]} 97. Kf5 {[%clk 0:00:27.6]} 97... Kb1 {[%clk 0:00:14.8]}
98. Ke4 {[%clk 0:00:28.3]} 98... Ka1 {[%clk 0:00:15.7]} 99. Kd3 {[%clk
0:00:28.8]} 99... Kb1 {[%clk 0:00:16.6]} 100. Kc3 {[%clk 0:00:29.3]} 100... Ka1
{[%clk 0:00:17.5]} 101. Qb2# {[%clk 0:00:29.7]} 1-0

[Event "*** Titled Tuesday Blitz"]
[Site "Chess.com"]
[Date "2020.04.21"]
[Round "6"]
[White "dey2580"]
[Black "Danfii"]
[Result "0-1"]
[WhiteElo "2433"]
[BlackElo "2306"]
[TimeControl "180+1"]
[EndTime "11:10:55 PDT"]
[Termination "Danfii won by resignation"]

1. d4 {[%clk 0:02:57.3]} 1... Nf6 {[%clk 0:02:59.7]} 2. Nf3 {[%clk 0:02:48.4]}
2... e6 {[%clk 0:02:59.3]} 3. e3 {[%clk 0:02:46.5]} 3... b6 {[%clk 0:02:56.3]}
4. Bd3 {[%clk 0:02:44]} 4... d5 {[%clk 0:02:56.3]} 5. O-O {[%clk 0:02:43.1]}
5... Bd6 {[%clk 0:02:56.8]} 6. c4 {[%clk 0:02:41.9]} 6... O-O {[%clk 0:02:54.8]}
7. Nc3 {[%clk 0:02:41.5]} 7... Bb7 {[%clk 0:02:54.3]} 8. b3 {[%clk 0:02:41]}
8... a6 {[%clk 0:02:54.1]} 9. Bb2 {[%clk 0:02:40.5]} 9... c5 {[%clk 0:02:54.3]}
10. cxd5 {[%clk 0:02:39.4]} 10... exd5 {[%clk 0:02:54.1]} 11. Rc1 {[%clk
0:02:39]} 11... Nbd7 {[%clk 0:02:50.1]} 12. Bb1 {[%clk 0:02:36.5]} 12... Re8
{[%clk 0:02:46.6]} 13. h3 {[%clk 0:02:22.7]} 13... Rc8 {[%clk 0:02:46.1]} 14.
dxc5 {[%clk 0:02:11.9]} 14... bxc5 {[%clk 0:02:45.9]} 15. Na4 {[%clk 0:02:10.8]}
15... Ne4 {[%clk 0:02:35.5]} 16. Bxe4 {[%clk 0:02:01.5]} 16... Rxe4 {[%clk
0:02:35.1]} 17. Nc3 {[%clk 0:02:01]} 17... Re8 {[%clk 0:02:18.9]} 18. Nxd5
{[%clk 0:02:00]} 18... Ne5 {[%clk 0:02:12]} 19. Nxe5 {[%clk 0:01:54.4]} 19...
Bxe5 {[%clk 0:02:12.9]} 20. Bxe5 {[%clk 0:01:53.8]} 20... Rxe5 {[%clk
0:02:10.5]} 21. Nf4 {[%clk 0:01:51.6]} 21... Qe7 {[%clk 0:02:04.5]} 22. Rc3
{[%clk 0:01:42.6]} 22... Rd8 {[%clk 0:01:59.9]} 23. Qc2 {[%clk 0:01:39.7]} 23...
Be4 {[%clk 0:01:58.8]} 24. Qe2 {[%clk 0:01:37.4]} 24... Qb7 {[%clk 0:01:54.9]}
25. Qg4 {[%clk 0:01:33]} 25... h6 {[%clk 0:01:45.3]} 26. h4 {[%clk 0:01:32.7]}
26... Bf5 {[%clk 0:01:39.9]} 27. Qg3 {[%clk 0:01:32.3]} 27... Be4 {[%clk
0:01:29.2]} 28. Rfc1 {[%clk 0:01:26.3]} 28... Qe7 {[%clk 0:01:14.9]} 29. Rc4
{[%clk 0:01:19.6]} 29... Rd2 {[%clk 0:01:09.8]} 30. a4 {[%clk 0:01:14.9]} 30...
Rb2 {[%clk 0:01:09.3]} 31. R4c3 {[%clk 0:01:01.7]} 31... Kh7 {[%clk 0:01:07.5]}
32. Rd1 {[%clk 0:00:59.7]} 32... Bc2 {[%clk 0:01:01.9]} 33. Rd5 {[%clk
0:00:57.2]} 33... Rb1+ {[%clk 0:00:54.9]} 34. Kh2 {[%clk 0:00:56.6]} 34... Bxb3
{[%clk 0:00:52.5]} 35. Nh5 {[%clk 0:00:49]} 35... f6 {[%clk 0:00:42.5]} 36. Rxe5
{[%clk 0:00:46.8]} 36... fxe5 {[%clk 0:00:43.4]} 37. Rxc5 {[%clk 0:00:46.1]}
37... Bd1 {[%clk 0:00:22.5]} 38. Rxe5 {[%clk 0:00:44.6]} 38... Qf7 {[%clk
0:00:22.6]} 39. Rf5 {[%clk 0:00:42.9]} 39... Qe7 {[%clk 0:00:20.6]} 40. Nf4
{[%clk 0:00:41.8]} 40... Bxa4 {[%clk 0:00:20.4]} 41. Qg6+ {[%clk 0:00:40.9]}
41... Kg8 {[%clk 0:00:20.9]} 42. Rd5 {[%clk 0:00:24.3]} 42... Qxh4+ {[%clk
0:00:19.4]} 43. Nh3 {[%clk 0:00:24.1]} 43... Rb8 {[%clk 0:00:16.4]} 44. Qe6+
{[%clk 0:00:21.5]} 44... Kh8 {[%clk 0:00:16]} 45. Qe5 {[%clk 0:00:19.7]} 45...
Rd8 {[%clk 0:00:12.4]} 46. Rxd8+ {[%clk 0:00:14.5]} 46... Qxd8 {[%clk
0:00:13.3]} 47. Nf4 {[%clk 0:00:14.6]} 47... Bb5 {[%clk 0:00:12.7]} 48. Ne6
{[%clk 0:00:12.3]} 48... Qh4+ {[%clk 0:00:11.9]} 49. Kg1 {[%clk 0:00:11.4]}
49... Qe7 {[%clk 0:00:12.4]} 50. Qf5 {[%clk 0:00:10]} 50... Bd7 {[%clk
0:00:11.2]} 51. Qf8+ {[%clk 0:00:09.9]} 51... Qxf8 {[%clk 0:00:11.5]} 52. Nxf8
{[%clk 0:00:10.8]} 52... Bf5 {[%clk 0:00:11.3]} 53. f3 {[%clk 0:00:10]} 53...
Kg8 {[%clk 0:00:11.6]} 54. e4 {[%clk 0:00:10.2]} 54... Kxf8 {[%clk 0:00:10]} 55.
exf5 {[%clk 0:00:10.3]} 55... Kf7 {[%clk 0:00:10.6]} 56. Kf2 {[%clk 0:00:10]}
56... Kf6 {[%clk 0:00:11.1]} 57. g4 {[%clk 0:00:10]} 57... Kg5 {[%clk 0:00:11]}
58. Kg3 {[%clk 0:00:09.9]} 58... a5 {[%clk 0:00:11]} 59. f4+ {[%clk 0:00:10.1]}
59... Kf6 {[%clk 0:00:11.3]} 60. Kf3 {[%clk 0:00:11]} 60... h5 {[%clk
0:00:08.6]} 61. gxh5 {[%clk 0:00:09.8]} 61... Kxf5 {[%clk 0:00:08.9]} 62. Ke3
{[%clk 0:00:10.5]} 62... Kg4 {[%clk 0:00:08.6]} 63. Kd4 {[%clk 0:00:10.1]} 63...
Kxh5 {[%clk 0:00:08.9]} 64. Kc5 {[%clk 0:00:10.4]} 64... Kg4 {[%clk 0:00:09.4]}
65. Kb5 {[%clk 0:00:11.3]} 65... Kxf4 {[%clk 0:00:09.9]} 66. Kxa5 {[%clk
0:00:12]} 66... g5 {[%clk 0:00:10.6]} 67. Kb4 {[%clk 0:00:10.7]} 67... g4 {[%clk
0:00:11.5]} 68. Kc3 {[%clk 0:00:10.5]} 68... g3 {[%clk 0:00:11.9]} 69. Kd2
{[%clk 0:00:09.5]} 69... g2 {[%clk 0:00:12.8]} 70. Ke2 {[%clk 0:00:10]} 70...
g1=Q {[%clk 0:00:13.7]} 71. Kd3 {[%clk 0:00:09.8]} 71... Qe3+ {[%clk 0:00:14]}
72. Kc4 {[%clk 0:00:10.5]} 72... Qd2 {[%clk 0:00:14]} 73. Kc5 {[%clk 0:00:10.2]}
73... Ke4 {[%clk 0:00:14.9]} 74. Kc4 {[%clk 0:00:04.7]} 74... Qc2+ {[%clk
0:00:14.4]} 75. Kb5 {[%clk 0:00:04.3]} 75... Kd5 {[%clk 0:00:14.2]} 0-1

[Event "*** Titled Tuesday Blitz"]
[Site "Chess.com"]
[Date "2020.04.21"]
[Round "6"]
[White "DrBergerBerger"]
[Black "DishonorOnYourCow"]
[Result "1-0"]
[WhiteElo "2454"]
[BlackElo "2295"]
[TimeControl "180+1"]
[EndTime "11:11:07 PDT"]
[Termination "DrBergerBerger won on time"]

1. e4 {[%clk 0:03:00.9]} 1... e5 {[%clk 0:02:58.9]} 2. Nf3 {[%clk 0:02:59.1]}
2... Nc6 {[%clk 0:02:58.8]} 3. Bb5 {[%clk 0:02:59.4]} 3... Nf6 {[%clk
0:02:58.2]} 4. d3 {[%clk 0:02:54]} 4... Bc5 {[%clk 0:02:57.4]} 5. c3 {[%clk
0:02:54]} 5... O-O {[%clk 0:02:55.5]} 6. O-O {[%clk 0:02:50.1]} 6... d6 {[%clk
0:02:54.9]} 7. h3 {[%clk 0:02:42.2]} 7... Bd7 {[%clk 0:02:51.1]} 8. Re1 {[%clk
0:02:29]} 8... a6 {[%clk 0:02:49.7]} 9. Ba4 {[%clk 0:02:28.1]} 9... Ba7 {[%clk
0:02:43.5]} 10. Nbd2 {[%clk 0:02:21.3]} 10... Ne7 {[%clk 0:02:41.9]} 11. Bc2
{[%clk 0:02:14.4]} 11... Ng6 {[%clk 0:02:40.9]} 12. Nf1 {[%clk 0:02:13.4]} 12...
Re8 {[%clk 0:02:38.7]} 13. Ng3 {[%clk 0:02:10.5]} 13... c6 {[%clk 0:02:37.4]}
14. d4 {[%clk 0:02:03]} 14... Qc7 {[%clk 0:02:25.1]} 15. Be3 {[%clk 0:01:58.1]}
15... d5 {[%clk 0:01:54.7]} 16. dxe5 {[%clk 0:01:23.4]} 16... Nxe4 {[%clk
0:01:40.5]} 17. Nxe4 {[%clk 0:01:20.4]} 17... dxe4 {[%clk 0:01:41.4]} 18. Bxe4
{[%clk 0:01:16.7]} 18... Bxe3 {[%clk 0:01:24.1]} 19. Rxe3 {[%clk 0:01:17.6]}
19... Nxe5 {[%clk 0:01:20.8]} 20. Nxe5 {[%clk 0:01:17.9]} 20... Rxe5 {[%clk
0:01:21]} 21. Bxh7+ {[%clk 0:01:10.7]} 21... Kxh7 {[%clk 0:01:20.3]} 22. Rxe5
{[%clk 0:01:11.2]} 22... Qxe5 {[%clk 0:01:20.9]} 23. Qxd7 {[%clk 0:01:11.3]}
23... Qf4 {[%clk 0:00:46.6]} 24. g3 {[%clk 0:01:04.8]} 24... Qf3 {[%clk
0:00:36.1]} 25. Re1 {[%clk 0:00:51.6]} 25... b5 {[%clk 0:00:22.4]} 26. Re3
{[%clk 0:00:45]} 26... Qf6 {[%clk 0:00:20.3]} 27. Kg2 {[%clk 0:00:32.7]} 27...
Rd8 {[%clk 0:00:19.3]} 28. Qe7 {[%clk 0:00:20.5]} 28... Qxe7 {[%clk 0:00:16.9]}
29. Rxe7 {[%clk 0:00:20.4]} 29... Rd2 {[%clk 0:00:17.7]} 30. Rxf7 {[%clk
0:00:16.5]} 30... Rxb2 {[%clk 0:00:17.3]} 31. Rc7 {[%clk 0:00:16.9]} 31... Rxa2
{[%clk 0:00:17.5]} 32. Rxc6 {[%clk 0:00:17.1]} 32... a5 {[%clk 0:00:17.3]} 33.
Rb6 {[%clk 0:00:11.5]} 33... Rb2 {[%clk 0:00:16.7]} 34. h4 {[%clk 0:00:07.2]}
34... a4 {[%clk 0:00:16.8]} 35. Ra6 {[%clk 0:00:03.2]} 35... Rb3 {[%clk
0:00:16.1]} 36. c4 {[%clk 0:00:03]} 36... bxc4 {[%clk 0:00:11.3]} 37. Rxa4
{[%clk 0:00:03.1]} 37... Rc3 {[%clk 0:00:10.4]} 38. Ra6 {[%clk 0:00:02]} 38...
Rc2 {[%clk 0:00:09.6]} 39. Rc6 {[%clk 0:00:02.8]} 39... c3 {[%clk 0:00:09.4]}
40. g4 {[%clk 0:00:03.3]} 40... Rc1 {[%clk 0:00:09.3]} 41. h5 {[%clk 0:00:03.1]}
41... c2 {[%clk 0:00:09.3]} 42. g5 {[%clk 0:00:03.1]} 42... Kg8 {[%clk
0:00:07.4]} 43. g6 {[%clk 0:00:03.1]} 43... Kf8 {[%clk 0:00:07.5]} 44. Kf3
{[%clk 0:00:03.4]} 44... Rh1 {[%clk 0:00:05.5]} 45. Rxc2 {[%clk 0:00:02.6]}
45... Rxh5 {[%clk 0:00:05.2]} 46. Kg4 {[%clk 0:00:02.8]} 46... Rd5 {[%clk
0:00:04.4]} 47. f4 {[%clk 0:00:02.5]} 47... Ke7 {[%clk 0:00:03.8]} 48. Rc7+
{[%clk 0:00:01]} 48... Kf8 {[%clk 0:00:03.7]} 49. Rc6 {[%clk 0:00:01.9]} 49...
Rd1 {[%clk 0:00:02.9]} 50. Kf5 {[%clk 0:00:01.8]} 50... Rd5+ {[%clk 0:00:02.8]}
51. Ke6 {[%clk 0:00:02]} 51... Rd8 {[%clk 0:00:03.2]} 52. f5 {[%clk 0:00:02]}
52... Re8+ {[%clk 0:00:03.6]} 53. Kd5 {[%clk 0:00:02.3]} 53... Rd8+ {[%clk
0:00:03.7]} 54. Ke5 {[%clk 0:00:03.2]} 54... Ra8 {[%clk 0:00:03.9]} 55. Re6
{[%clk 0:00:04.1]} 55... Rd8 {[%clk 0:00:03.9]} 56. Kf4 {[%clk 0:00:05]} 56...
Ra8 {[%clk 0:00:04.3]} 57. Kg5 {[%clk 0:00:05.9]} 57... Ra1 {[%clk 0:00:04.1]}
58. Rb6 {[%clk 0:00:06.1]} 58... Rg1+ {[%clk 0:00:04]} 59. Kf4 {[%clk
0:00:06.7]} 59... Rf1+ {[%clk 0:00:04.3]} 60. Ke5 {[%clk 0:00:07.3]} 60... Re1+
{[%clk 0:00:04.6]} 61. Kd5 {[%clk 0:00:07.3]} 61... Rd1+ {[%clk 0:00:04.7]} 62.
Ke6 {[%clk 0:00:06.5]} 62... Re1+ {[%clk 0:00:04.9]} 63. Kd7 {[%clk 0:00:06.2]}
63... Rd1+ {[%clk 0:00:05]} 64. Rd6 {[%clk 0:00:06.5]} 64... Rf1 {[%clk
0:00:05.1]} 65. Ke6 {[%clk 0:00:05.9]} 65... Re1+ {[%clk 0:00:05.1]} 66. Kd7
{[%clk 0:00:06.2]} 66... Rf1 {[%clk 0:00:05.1]} 67. Rd5 {[%clk 0:00:06.8]} 67...
Re1 {[%clk 0:00:05.1]} 68. Kd6 {[%clk 0:00:05.9]} 68... Rf1 {[%clk 0:00:04.5]}
69. Re5 {[%clk 0:00:06.1]} 69... Rd1+ {[%clk 0:00:04.3]} 70. Ke6 {[%clk
0:00:07]} 70... Rd2 {[%clk 0:00:03.9]} 71. Ra5 {[%clk 0:00:04.9]} 71... Re2+
{[%clk 0:00:03.5]} 72. Kd6 {[%clk 0:00:05.2]} 72... Rd2+ {[%clk 0:00:03.8]} 73.
Rd5 {[%clk 0:00:05.7]} 73... Rf2 {[%clk 0:00:03.5]} 74. Ke6 {[%clk 0:00:05.9]}
74... Re2+ {[%clk 0:00:03.4]} 75. Re5 {[%clk 0:00:06.3]} 75... Rd2 {[%clk
0:00:03.3]} 76. Re3 {[%clk 0:00:05.4]} 76... Rd1 {[%clk 0:00:03]} 77. f6 {[%clk
0:00:05.1]} 77... gxf6 {[%clk 0:00:02.2]} 78. Kxf6 {[%clk 0:00:05.9]} 78... Rd6+
{[%clk 0:00:01.9]} 79. Kg5 {[%clk 0:00:04.6]} 79... Kg8 {[%clk 0:00:01.9]} 80.
Kh6 {[%clk 0:00:04.3]} 80... Rd8 {[%clk 0:00:02.5]} 81. Re7 {[%clk 0:00:04.3]}
81... Rc8 {[%clk 0:00:03.4]} 82. Rg7+ {[%clk 0:00:04.4]} 82... Kf8 {[%clk
0:00:03.5]} 83. Rh7 {[%clk 0:00:05.3]} 83... Rc1 {[%clk 0:00:03.7]} 84. Rh8+
{[%clk 0:00:05.3]} 84... Ke7 {[%clk 0:00:03.6]} 85. g7 {[%clk 0:00:05.4]} 85...
Rh1+ {[%clk 0:00:04]} 86. Kg6 {[%clk 0:00:05.4]} 86... Rg1+ {[%clk 0:00:04.2]}
87. Kh7 {[%clk 0:00:03.6]} 87... Rh1+ {[%clk 0:00:04.2]} 88. Kg8 {[%clk
0:00:03.6]} 88... Rb1 {[%clk 0:00:03.5]} 89. Rh2 {[%clk 0:00:03.9]} 89... Rb8+
{[%clk 0:00:03.3]} 90. Kh7 {[%clk 0:00:03.6]} 1-0